Cogmind - Beta 13 @@@ ROGUE MODE // 2024.04.20 @ 13:32:47 Player: Razor Feather Result: Destroyed by L-31 Rogue with Katana Performance ------------- Evolutions (1) 500 Regions Visited (2) 400 Robots Destroyed (69) 345 Value Destroyed (1717) 1717 Prototype IDs (5) 100 Alien Tech Used (0) 0 Bonus (145) 145 TOTAL SCORE: 3207 Bonus ------- High Alert Combat Kills 145 Cogmind --------- Core Integrity 0/400 Matter 194/300 Energy 83/100 System Corruption 0% Temperature Cool (75) Movement Core (1350) Ox26 Location -9/Materials Parts ------- > --- POWER (1) -------- (None) > --- PROPULSION (2) --- (None) > --- UTILITY (3) ------ Huge Storage Unit > --- WEAPON (3) ------- (None) > --- INVENTORY (25) --- Ion Engine Ion Engine Ion Engine Armored Wheel Armored Wheel Heat Sink Improved Heat Sink Cooling System Huge Storage Unit Large Matter Pod (150) Medium Armor Plating Hacking Suite Trap Extractor (0/4) Particle Cannon Particle Cannon Heavy Assault Rifle Autogun Improved Light Cannon Improved Light Cannon Grenade Launcher Rocket Launcher Rocket Launcher Peak State ------------ > --- POWER ------------ Improved Ion Engine > --- PROPULSION ------- Armored Wheel Armored Wheel > --- UTILITY ---------- Huge Storage Unit Hardened Light Armor Plating Hacking Suite > --- WEAPON ----------- Particle Cannon Heavy Assault Rifle Improved Light Cannon > --- INVENTORY -------- Ion Engine Ion Engine Ion Engine Armored Wheel Armored Wheel Heat Sink Improved Heat Sink Huge Storage Unit Large Matter Pod Improved Terrain Scanner Terrain Scan Processor Propulsion Shielding Hardened Light Armor Plating Hardened Light Armor Plating Hacking Suite Trap Extractor Particle Cannon Particle Cannon Particle Cannon Assault Rifle Grenade Launcher Rocket Launcher Rocket Launcher Rocket Launcher Rocket Launcher [Rating: 22] Favorites ----------- Power Ion Engine Engine Ion Engine Propulsion Armored Wheel Wheel Armored Wheel Utility Huge Storage Unit Device Improved Terrain Scanner Storage Huge Storage Unit Hackware Hacking Suite Protection Medium Armor Plating Weapon Assault Rifle Energy Gun Beam Rifle Energy Cannon Particle Cannon Ballistic Gun Assault Rifle Ballistic Cannon Light Cannon Launcher Rocket Launcher Build | -11 -10 -9 ------- Run | Yrd Mat Mat Slots Evolved 2 | . . 2 Power . | . . . Propulsion . | . . . Utility 1 | . . 1 Weapon 1 | . . 1 Parts Attached 54 | 7 18 29 Power 6 | 1 3 2 Engine 6 | 1 3 2 Core . | . . . Reactor . | . . . Propulsion 6 | 2 4 . Treads . | . . . Leg . | . . . Wheel 6 | 2 4 . Hover . | . . . Flight . | . . . Utility 12 | 2 3 7 Device 1 | 1 . . Storage 3 | 1 2 . Processor . | . . . Hackware 1 | . 1 . Protection 7 | . . 7 Artifact . | . . . Weapon 30 | 2 8 20 Energy Gun 1 | . . 1 Energy Cannon 5 | . 2 3 Ballistic Gun 11 | 2 2 7 Ballistic Cannon 3 | . 2 1 Launcher 10 | . 2 8 Special Weapon . | . . . Impact Weapon . | . . . Slashing Weapon . | . . . Piercing Weapon . | . . . Special Melee Weapon . | . . . Unidentified Prototypes . | . . . Parts Lost 10 | . 1 9 Power 1 | . 1 . Propulsion 2 | . . 2 Utility 3 | . . 3 Weapon 4 | . . 4 Highest Loss Streak 7 | . 1 7 To Critical Strikes . | . . . Average Slot Usage (%) 99 | . 99 99 Engine 12 | . 13 10 Wheel 24 | . 28 21 Device 5 | . 11 . Storage 12 | . 14 11 Hackware 6 | . 2 11 Protection 5 | . . 10 Energy Cannon 7 | . 6 7 Ballistic Gun 18 | . 16 19 Ballistic Cannon 3 | . 4 3 Naked Turns . | . . . Heaviest Build 107 | 15 93 107 Greatest Support 26 | 26 26 24 Greatest Overweight (x) 4 | 1 3 4 Average Overweight (x) 2 | . 2 3 Largest Inventory Capacity 25 | 8 25 25 Average Capacity 23 | 7 22 25 Most Carried 25 | 8 25 25 Average Carried 21 | 5 20 24 Final Capacity 25 | 8 25 25 Final Carried 25 | 8 25 22 Class Distribution -------------------- 51% | Mutant 46% | Tank Dominant Class ---------------- Mutant | -10/Materials Tank | -9/Materials Resources | -11 -10 -9 ----------- Run | Yrd Mat Mat Matter Collected 1806 | 338 635 833 Remotely . | . . . Salvage Created 2091 | 171 600 1320 Parts 149 | 10 47 92 Haulers Intercepted 6 | . 2 4 Recyclers Shooed 2 | . 1 1 Parts Field Recycled . | . . . Retrieved Matter . | . . . Parts Self-Destructed . | . . . Prevented . | . . . Kills | -11 -10 -9 ------- Run | Yrd Mat Mat Combat Hostiles Destroyed 44 | . 14 30 Guns 21 | . 9 12 Cannons 10 | . 5 5 AOE 13 | . . 13 Classes Destroyed 13 | 3 5 5 Worker 4 | 1 1 2 Builder 2 | . . 2 Tunneler 4 | 3 . 1 Hauler 6 | . 2 4 Recycler 2 | 1 1 . Operator 2 | . 1 1 Watcher 5 | . 2 3 Swarmer 9 | . 5 4 Grunt 22 | . 9 13 Brawler 1 | . . 1 Duelist 3 | . . 3 Protector 1 | . . 1 Sentry 8 | . . 8 Best Kill Streak 7 | 4 6 7 Combat Bots Only 5 | . 5 5 Max Kills in Single Turn 3 | 1 2 3 Gunslinging . | . . . Exploded 3 | . . 3 Melee . | . . . Uniques/NPCs Destroyed . | . . . Combat | -11 -10 -9 -------- Run | Yrd Mat Mat Hostile Shots Fired 168 | . 63 105 Missed 40 | . 16 24 Damage Taken 2413 | . 609 1804 Core 515 | . 103 412 Absorbed by Shields . | . . . Regen/Repaired (Parts) 123 | . 123 . Core Remaining (%) 79 | 100 58 . Volleys Fired 137 | 9 50 78 Largest 3 | 2 2 3 Hottest 130 | 40 103 130 Shots Fired 319 | 18 99 202 Gun 225 | 18 67 140 Cannon 72 | . 28 44 Launcher 22 | . 4 18 Special . | . . . Kinetic 245 | 18 84 143 Thermal 52 | . 11 41 Explosive 22 | . 4 18 Electromagnetic . | . . . Robot Hit Streak 10 | 3 6 10 Robot Miss Streak 7 | 2 3 7 Penetration Max . | . . . Secondary Targets 2 | . 2 . Max Gunslinging Chain 1 | . 1 . Shots Hit Robots 185 | 10 61 114 Core Hits 109 | 6 27 76 Critical Kills . | . . . Critical Parts Destroyed 1 | . 1 . Critical Strikes 1 | . 1 . Destroy 1 | . 1 . Melee Attacks . | . . . Impact . | . . . Slashing . | . . . Piercing . | . . . Sneak Attacks . | . . . Combat Hostiles . | . . . Follow-up Attacks . | . . . Damage Inflicted 4785 | 128 1169 3488 Guns 1818 | 128 553 1137 Cannons 757 | . 325 432 Explosions 2210 | . 291 1919 Melee . | . . . Ramming . | . . . Kinetic 1998 | 128 714 1156 Thermal 686 | . 164 522 Explosive 2101 | . 291 1810 Electromagnetic . | . . . Impact . | . . . Slashing . | . . . Piercing . | . . . Highest Corruption 1 | . 1 . Average Corruption 1 | . 1 . Corruption Purged . | . . . Corruption Blocked . | . . . Effects 7 | . 7 . Message Errors 1 | . 1 . Matter Fused 1 | . 1 . Energy Discharges 1 | . 1 . Data Loss (minor) 3 | . 3 . Weapon Failures 1 | . 1 . Overload Shots . | . . . Overflow Damage 65 | . 38 27 Projectiles 13 | . 13 . Explosions 52 | . 25 27 Melee . | . . . Knockbacks . | . . . Impact . | . . . Kinetic . | . . . Secondary . | . . . Self-Inflicted Damage 317 | . . 317 Shots 8 | . . 8 Rammed . | . . . Targets Rammed . | . . . Kicked . | . . . Crushed . | . . . Highest Temperature 285 | 6 204 285 Average Temperature 87 | 6 70 91 Received Heat Transfer 510 | . 204 306 Effects 4 | . . 4 Energy Bleed 1 | . . 1 Interference 3 | . . 3 Siege Activations . | . . . Robots Corrupted . | . . . Combat Hostiles . | . . . Parts Fried . | . . . Impact Corruptions . | . . . Robots Melted . | . . . Combat Hostiles . | . . . Parts Melted . | . . . Heat Transferred 1105 | . 296 809 Parts Sabotaged . | . . . Parts Stolen . | . . . Parts Stripped . | . . . Power Chain Reactions . | . . . Alert | -11 -10 -9 ------- Run | Yrd Mat Mat Peak Influence 731 | 25 223 731 Initial 16 | . 16 . Average 263 | 9 91 452 Maximum Alert Level 3 | . 1 3 Low Security (%) 48 | 100 81 12 Level 1 16 | . 18 15 Level 2 31 | . . 65 Level 3 3 | . . 6 Level 4 . | . . . Level 5 . | . . . High Security . | . . . Max Security . | . . . Squads Dispatched 8 | . 3 5 Investigation 4 | . 2 2 Extermination . | . . . Reinforcement 3 | . 1 2 Assault 1 | . . 1 Garrison . | . . . Intercept . | . . . Searches Triggered . | . . . Construction Impeded 1 | . . 1 Haulers Reinforced . | . . . Active Scanning Responses . | . . . Cargo Convoy Interrupts . | . . . Stealth | -11 -10 -9 --------- Run | Yrd Mat Mat Distress Signals 3 | . 1 2 Communications Jammed . | . . . Distress Signals . | . . . Times Spotted 60 | . 19 41 Peak Tracking Total 5 | . 3 5 Tactical Retreats 3 | . 2 1 Traps | -11 -10 -9 ------- Run | Yrd Mat Mat Traps Triggered 9 | . 6 3 Indirectly . | . . . Trap Hack Attempts . | . . . Triggered . | . . . Disarmed . | . . . Reprogrammed . | . . . Reused . | . . . Traps Extracted . | . . . Installed . | . . . Triggered . | . . . Machines | -11 -10 -9 ---------- Run | Yrd Mat Mat Machines Disabled 10 | . 1 9 Max in Single Turn 2 | . 1 2 Machines Repaired . | . . . Machines Dismantled . | . . . Machines Sabotaged . | . . . Overloaded Fab Kills . | . . . Hacking | -11 -10 -9 --------- Run | Yrd Mat Mat Machines Accessed 9 | . 6 3 Terminals 6 | . 4 2 Fabricators . | . . . Repair Stations 1 | . 1 . Recycling Units 1 | . 1 . Scanalyzers 1 | . . 1 Garrison Access . | . . . Total Hacks 23 | . 15 8 Successful 13 | . 8 5 Failed 10 | . 7 3 Catastrophic . | . . . Database Lockouts . | . . . Manual . | . . . Terminals 12 | . 8 4 Fabricators . | . . . Repair Stations 4 | . 4 . Recycling Units 3 | . 3 . Scanalyzers 4 | . . 4 Garrison Access . | . . . Terminal Hacks 4 | . 2 2 Prototype ID Bank 2 | . 1 1 Alert Level 1 | . . 1 Unreport Threat 1 | . 1 . Fabricator Hacks . | . . . Repair Station Hacks 4 | . 4 . Scan Component 2 | . 2 . Repair 2 | . 2 . Recycling Unit Hacks 2 | . 2 . Report Inventory 1 | . 1 . Retrieve Components 1 | . 1 . Scanalyzer 3 | . . 3 Insert Component 2 | . . 2 Analyze 1 | . . 1 Garrison Access Hacks . | . . . Unauthorized Hacks . | . . . Terminals . | . . . Fabricators . | . . . Repair Stations . | . . . Recycling Units . | . . . Scanalyzers . | . . . Garrison Access . | . . . Data Cores Recovered . | . . . Used . | . . . Hacking Detections 7 | . 5 2 Full Trace Events 2 | . 1 1 Feedback Events . | . . . Feedback Blocked . | . . . Robot Schematics Acquired . | . . . Robots Built . | . . . Authchips . | . . . Time . | . . . Total Robot Build Rating . | . . . Part Schematics Acquired 1 | . . 1 Parts Built . | . . . Authchips . | . . . Time . | . . . Total Part Build Rating . | . . . Parts Repaired 2 | . 2 . Time 64 | . 64 . Parts Recycled . | . . . Recycled Matter . | . . . Retrieved Matter . | . . . Retrieved Components 10 | . 10 . Parts Scanalyzed 2 | . . 2 Part Schematics Acquired 1 | . . 1 Parts Damaged . | . . . Bothacking | -11 -10 -9 ------------ Run | Yrd Mat Mat Used RIF Installer . | . . . Robots Hacked . | . . . Non-combat . | . . . Combat . | . . . Robot Hacks Applied . | . . . Relay Couplers Released . | . . . Fabnet Peak Effective % . | . . . Robots Rewired . | . . . Allies Hacked . | . . . Hacks Repelled . | . . . Allies | -11 -10 -9 -------- Run | Yrd Mat Mat Total Allies . | . . . Largest Group . | . . . Highest-Rated Group . | . . . Highest-Rated Ally . | . . . Total Orders . | . . . Ally Attacks . | . . . Total Damage . | . . . Kills . | . . . Allies Corrupted . | . . . Allies Melted . | . . . Intel | -11 -10 -9 ------- Run | Yrd Mat Mat Robot Analysis Total . | . . . Derelict Logs Recovered . | . . . Drone Launches . | . . . Drone Recoveries . | . . . Exploration | -11 -10 -9 ------------- Run | Yrd Mat Mat Turns Passed 2603 | 119 1214 1270 Spaces Moved 1448 | 84 734 630 Core 15 | 15 . . Treads . | . . . Legs . | . . . Wheels 1433 | 69 734 630 Hover . | . . . Flight . | . . . Fastest Speed 50 | 50 90 135 Average Speed 134 | 84 126 149 Slowest Speed 150 | 100 135 150 Overloaded Moves . | . . . Propulsion Burnouts . | . . . Robots Hopped . | . . . Cave-ins Triggered . | . . . Exploration Rate (%) 53 | 5 90 66 Regions Visited 2 Branch Regions . Pre-discovered Areas . | . . . Known Exits Taken . | . . . Unknown Exits Taken 2 | 1 1 . Scrap Searched . | . . . Spaces Dug . | . . . Terrain Destroyed 127 | . 40 87 Melee . | . . . Projectile . | . . . AOE 127 | . 40 87 Terrain Rammed . | . . . Walls Destroyed . | . . . Machines Disabled . | . . . Actions | -11 -10 -9 --------- Run | Yrd Mat Mat Total 1834 | 113 923 798 Wait 86 | . 64 22 Move 1446 | 83 733 630 Hop . | . . . Pick Up 71 | 14 38 19 Fast Attach 6 | 1 2 3 Attach 16 | 6 3 7 Detach . | . . . Swap 32 | . 13 19 Drop 40 | . 20 20 Fire 137 | 9 50 78 Melee . | . . . Ram . | . . . Kick . | . . . Crush . | . . . Escape Stasis . | . . . Rewire . | . . . Trap . | . . . Miscellaneous . | . . . Route ------- -11/Scrapyard -10/Materials (discovered 5 exits: *Mat x3 / [*Min x2]) -9/Materials (discovered 5 exits: [*Mat x2] / [*Min] / [*Sto x2]) History --------- Turn | Location | Event 6 | -11/Scrapyard | Discovered new exit (range 16) 120 | -11/Scrapyard | Entered Materials 312 | -10/Materials | Build established: Mutant 330 | -10/Materials | Discovered new exit (range 9) 373 | -10/Materials | Discovered new exit (range 9) 410 | -10/Materials | Discovered new exit (range 16) 549 | -10/Materials | Discovered new exit (range 5) 726 | -10/Materials | Discovered new exit (range 9) 1233 | -10/Materials | Repaired Arm. Wheel 1266 | -10/Materials | Repaired Arm. Wheel 1334 | -10/Materials | Entered another Materials area 1334 | -9/Materials | Evolved 2 slots: Utility x1, Weapon x1 1653 | -9/Materials | Build established: Tank 1697 | -9/Materials | Discovered new exit (range 12) 1769 | -9/Materials | Discovered new exit (range 13) 1865 | -9/Materials | Discovered new exit (range 10) 1992 | -9/Materials | Discovered new exit (range 11) 2103 | -9/Materials | Discovered new exit (range 8) 2534 | -9/Materials | First assault squad dispatched 2595 | -9/Materials | Core integrity fell below 50% 2603 | -9/Materials | Core integrity fell below 20% 2604 | -9/Materials | Destroyed by L-31 Rogue with Katana Last Messages --------------- 02586_ I-25 Savior unfolds itself. 02589_ Rnf. Ion Engine severed. 02592_ Arm. Wheel destroyed. 02592_ Med. Armor Plating destroyed. 02592_ Destroyed Med. Armor Plating. 02594_ Particle Cannon severed. 02594_ Arm. Wheel destroyed. 02597_ U-05 Engineer lays Concrete. 02597_ Grenade Launcher severed. 02597_ U-05 Engineer builds a Wall. 02599_ Hvy. Assault Rifle destroyed. 02599_ Med. Armor Plating destroyed. 02600_ Rocket Launcher destroyed. 02600_ Destroyed Rocket Launcher. 02601_ U-05 Engineer builds a Wall. 02602_ Hacking Suite severed. 02603_ L-31 Rogue destroyed. 02603_ G-47 Trooper destroyed. 02603_ I-25 Savior destroyed. 02604_ Rocket Launcher destroyed. Map ----- +----------------------------------------------------+ | ??# !![ #?????????# # "" #??????????????????? | | ??# !! #?????????# # #??????????????????? | | ??# ! ! #?????????# #####+#??????????????????? | | ??# #????????## ##### #??????????????????? | | ??# """ #????????# #??????????????????? | | ??# """ #????????# #??????????????????? | | ??# """ #????????# +??????????????????? | | #?# #????????# """ #??????????????????? | | ##########+####?????# """ #??????????????????? | | #?????# """ #??????????????????? | | #?????# #??????????????????? | | #?????# #??????????????????? | | ###+####### #?????# !!=| ####???????????????? | | ### !! ## #?????# =| !##??????????????? | | ## !! ## #?????# ! = !#??????????????? | | ## [ !! ## ####### ! !#??????????????? | | ## ## !#??????????????? | | ## ## ####### !#??????????????? | | ## ## ########## !##??????????????? | | ########## #### # #####???????????????? | | #????????# #??# # #???????????????????? | | ########### #??# #???????????????????? | | #??# #???????????????????? | | #??# % #???????????????????? | | """ """ #??# % %l #???????????????????? | | * """ """ #??# l@ ##########??????????? | | = "" """ #??### #??????????? | | * #????#+ #??????????? | | #???? u + #??????????? | | | #?? # ############??????????? | | #""" # #?????????????????????? | | =[[= #?"" ?# u #?????????????????????? | | !% = #?"" ?+ ############??????????? | | ! #? # ## #??????????? | | * %! # # ## #??????????? | | ########## ## #??????????? | | = ######### # #??????????? | | = =[ # #??????????? | | !* + #??????????? | | % % = # #??????????? | | ### ############### # #??????????? | | #!! ##??## ###???#####+#############??????????? | | #] #??? ???????# #??????????????????? | | #% # ""?????????# #??????????????????? | | #] + ???????????# #??????????????????? | | #! #????????????# """ #??????????????????? | | # #????????????# " """ #??????????????????? | | ### #????????????# T """ #??????????????????? | | #????????????# " #??????????????????? | | #????????????# [ #??????????????????? | +----------------------------------------------------+ Best States ------------- Heat Dissipation 28 Energy Generation 12 Energy Capacity 265 Matter Stores 300 Matter Capacity 300 Sight Range 16 Terrain Scan Range 16 Terrain Scan Density 10 Armor Coverage 225 Evasion (%) 50 Offensive Hacking 10 Item Schematics ----------------- Grenade Launcher | -9/Materials | Scanalyzed Robot Schematics ------------------ None Fabricated ------------ Nothing Alien Tech Used ----------------- None Achievements -------------- None Challenges ------------ None Game ------ Seed ImpulseCatalystTerrabomb Manual? 0 Play Time 00:33:06 Cumulative 20.8 hours Start 2024.04.20 @ 09:39:40 End 2024.04.20 @ 13:32:47 Sessions 3 Manual Loads 0 Difficulty Rogue Special Mode None Game No. 22 Rogue 22 Adventurer 0 Explorer 0 Win Type - Total 0 Types 0/0/0/0/0/0/0/0/0 Lore% 19 Gallery% 25 Achievement% 21 Wizard Run 0 Options --------- Layout 0 ASCII 0 Keyboard 0 Movement Mouse Keybinds 0 Fullscreen 1 Font 18/SmallcapsGlow Map View 76x50 Zoom Use 0% Tactical HUD 1 Map Filters NONE Filters NONE Steam 1 RUN: b55e7cc6-d790-4597-b641-e90cd2c9001a